[Event "Groningen Festival 2018"]
[Site "Groningen"]
[Date "2018.12.28"]
[Round "7"]
[White "Ladva, Ottomar"]
[Black "Schoppen, Casper"]
[Result "1/2-1/2"]
[ECO "A13"]
[WhiteElo "2497"]
[BlackElo "2431"]
[Annotator "ChessBase"]
[PlyCount "112"]
[EventDate "2018.12.22"]
[EventType "swiss"]
[EventCountry "NED"]
[SourceTitle "playchess.com"]
[Source "ChessBase"]
[SourceQuality "1"]
[TimeControl "40/5400+30:1800+30"]

1. Nf3 {[%emt 0:00:00]} Nf6 {[%emt 0:01:19]} 2. c4 {[%emt 0:00:21]} e6 {[%emt 0:00:20]} 3. b3 {[%emt 0:04:24]} d5 {[%emt 0:02:47]} 4. Bb2 {[%emt 0:00:06]} c5 {[%emt 0:00:34]} 5. cxd5 {[%emt 0:02:10]} exd5 {[%emt 0:00:28]} 6. e3 {[%emt 0:07:42]} Nc6 {[%emt 0:01:08]} 7. Bb5 {[%emt 0:00:36]} Bd6 {[%emt 0:02:32]} 8. O-O {[%emt 0:02:54]} O-O {[%emt 0:01:43]} 9. d4 {[%emt 0:02:20]} cxd4 {[%emt 0:03:07]} 10. Nxd4 {[%emt 0:00:31]} Ne5 {[%emt 0:10:05]} 11. Nc3 {[%emt 0:05:24]} a6 {[%emt 0:09:22]} 12. Be2 {[%emt 0:00:04]} Re8 {[%emt 0:00:08]} 13. Qc2 {[%emt 0:05:37]} Bd7 {[%emt 0:05:40]} 14. Nf5 {[%emt 0:05:05]} Bf8 {[%emt 0:02:14]} 15. Rad1 {[%emt 0:04:52]} Rc8 {[%emt 0:03:55]} 16. Qb1 {[%emt 0:16:21]} Qa5 {[%emt 0:06:40]} 17. Rc1 {[%emt 0:07:39]} Bb4 {[%emt 0:16:39]} 18. Na4 {[%emt 0:00:15]} Ne4 {[%emt 0:09:44]} 19. Rxc8 {[%emt 0:00:46]} Bxc8 {[%emt 0:00:18]} 20. Qa1 {[%emt 0:12:16]} f6 {[%emt 0:00:51]} 21. Ng3 {[%emt 0:02:12]} b5 {[%emt 0:05:34]} 22. a3 {[%emt 0:07:15]} Bf8 {[%emt 0:01:54]} 23. b4 {[%emt 0:06:20]} Qd8 {[%emt 0:08:02]} 24. Bxe5 {[%emt 0:04:37]} Rxe5 {[%emt 0:01:19]} 25. Nc3 {[%emt 0:00:14]} Nd6 {[%emt 0:03:32]} 26. Rd1 {[%emt 0:00:25]} Be6 {[%emt 0:00:54]} 27. Nh5 {[%emt 0:01:40]} Bf7 {[%emt 0:00:48]} 28. Nf4 {[%emt 0:00:07]} Nc4 {[%emt 0:00:37]} 29. Bf3 {[%emt 0:00:59]} Qb6 {[%emt 0:00:06]} 30. Ncxd5 {[%emt 0:00:48]} Qa7 {[%emt 0:00:10]} 31. h4 {[%emt 0:00:43]} a5 {[%emt 0:00:17]} 32. Qd4 {[%emt 0:00:26]} Qxd4 {[%emt 0:00:35]} 33. exd4 {[%emt 0:00:35]} Re8 {[%emt 0:00:05]} 34. bxa5 {[%emt 0:00:33]} Nxa5 {[%emt 0:00:24]} 35. Rb1 {[%emt 0:00:26]} Rb8 {[%emt 0:01:12]} 36. Nc3 {[%emt 0:00:41]} Bd6 {[%emt 0:00:30]} 37. Nfe2 {[%emt 0:00:33]} Bc4 {[%emt 0:00:20]} 38. a4 {[%emt 0:00:28]} bxa4 {[%emt 0:01:39]} 39. Rxb8+ {[%emt 0:00:12]} Bxb8 {[%emt 0:00:01]} 40. Nxa4 {[%emt 0:00:06]} Nb3 {[%emt 0:00:47]} 41. Nac3 {[%emt 0:11:14]} Ba7 {[%emt 0:01:29]} 42. d5 {[%emt 0:00:10]} Nd4 {[%emt 0:00:58]} 43. Nxd4 {[%emt 0:01:55]} Bxd4 {[%emt 0:00:13]} 44. Nb1 {[%emt 0:01:19]} Kf7 {[%emt 0:02:49]} 45. Nd2 {[%emt 0:00:06]} Ba2 {[%emt 0:01:56]} 46. Kf1 {[%emt 0:04:12]} f5 {[%emt 0:01:04]} 47. g3 {[%emt 0:02:26]} Ke7 {[%emt 0:00:30]} 48. Bg2 {[%emt 0:04:05]} Kd6 {[%emt 0:00:24]} 49. Ke2 {[%emt 0:00:02]} Bxd5 {[%emt 0:00:31]} 50. Bxd5 {[%emt 0:00:01]} Kxd5 {[%emt 0:00:07]} 51. Nf3 {[%emt 0:00:01]} Bb6 {[%emt 0:00:31]} 52. h5 {[%emt 0:00:29]} Ba7 {[%emt 0:01:16]} 53. Ng5 {[%emt 0:03:05]} h6 {[%emt 0:00:11]} 54. Nh3 {[%emt 0:00:07]} Ke5 {[%emt 0:00:18]} 55. Nf4 {[%emt 0:02:37]} Kf6 {[%emt 0:00:15]} 56. Nh3 {[%emt 0:01:25]} Ke5 {[%emt 0:27:08]} 1/2-1/2

[Event "Groningen Festival 2018"]
[Site "Groningen"]
[Date "2018.12.28"]
[Round "7"]
[White "Beerdsen, Thomas"]
[Black "Ashwath, R.."]
[Result "1/2-1/2"]
[ECO "C44"]
[WhiteElo "2477"]
[BlackElo "2314"]
[Annotator "ChessBase"]
[PlyCount "34"]
[EventDate "2018.12.22"]
[EventType "swiss"]
[EventCountry "NED"]
[SourceTitle "playchess.com"]
[Source "ChessBase"]
[SourceQuality "1"]
[TimeControl "40/5400+30:1800+30"]

1. e4 {[%emt 0:00:43]} e5 {[%emt 0:00:29]} 2. Nf3 {[%emt 0:02:00]} Nc6 {[%emt 0:00:22]} 3. c3 {[%emt 0:00:10]} d5 {[%emt 0:05:13]} 4. Qa4 {[%emt 0:00:08]} f6 {[%emt 0:01:18]} 5. d3 {[%emt 0:01:37]} Nge7 {[%emt 0:00:41]} 6. Nbd2 {[%emt 0:02:05]} Be6 {[%emt 0:02:55]} 7. Be2 {[%emt 0:06:28]} Ng6 {[%emt 0:09:54]} 8. Nb3 {[%emt 0:14:15]} Bd7 {[%emt 0:11:38]} 9. Na5 {[%emt 0:03:07]} Nd4 {[%emt 0:12:48]} 10. Qd1 {[%emt 0:00:43]} Nxe2 {[%emt 0:00:31]} 11. Qxe2 {[%emt 0:00:09]} c5 {[%emt 0:01:04]} 12. Nb3 {[%emt 0:00:12]} d4 {[%emt 0:03:16]} 13. O-O {[%emt 0:04:14]} Bd6 {[%emt 0:01:47]} 14. Bd2 {[%emt 0:03:35]} O-O {[%emt 0:02:25]} 15. cxd4 {[%emt 0:02:07]} exd4 {[%emt 0:03:28]} 16. Na5 {[%emt 0:07:27]} b6 {[%emt 0:10:05]} 17. Nc4 {[%emt 0:03:26]} Be6 {[%emt 0:08:26]} 1/2-1/2

[Event "Groningen Festival 2018"]
[Site "Groningen"]
[Date "2018.12.28"]
[Round "7"]
[White "Vrolijk, Liam"]
[Black "Ulybin, Mikhail"]
[Result "1-0"]
[ECO "A90"]
[WhiteElo "2440"]
[BlackElo "2482"]
[Annotator "ChessBase"]
[PlyCount "125"]
[EventDate "2018.12.22"]
[EventType "swiss"]
[EventCountry "NED"]
[SourceTitle "playchess.com"]
[Source "ChessBase"]
[SourceQuality "1"]
[TimeControl "40/5400+30:1800+30"]

1. d4 {[%emt 0:00:00]} e6 {[%emt 0:06:27]} 2. c4 {[%emt 0:00:00]} f5 {[%emt 0:01:06]} 3. g3 {[%emt 0:00:06]} Nf6 {[%emt 0:01:12]} 4. Bg2 {[%emt 0:00:10]} d5 {[%emt 0:01:41]} 5. Nh3 {[%emt 0:00:23]} c6 {[%emt 0:02:12]} 6. O-O {[%emt 0:00:14]} Bd6 {[%emt 0:01:52]} 7. Nd2 {[%emt 0:00:29]} h6 {[%emt 0:10:17]} 8. b3 {[%emt 0:10:24]} g5 {[%emt 0:09:39]} 9. Bb2 {[%emt 0:06:51]} g4 {[%emt 0:12:07]} 10. Nf4 {[%emt 0:00:42]} Bxf4 {[%emt 0:01:27]} 11. gxf4 {[%emt 0:00:07]} h5 {[%emt 0:03:10]} 12. e3 {[%emt 0:02:29]} Nbd7 {[%emt 0:10:47]} 13. Ba3 {[%emt 0:03:28]} Nf8 {[%emt 0:03:24]} 14. Bxf8 {[%emt 0:05:30]} Kxf8 {[%emt 0:01:01]} 15. b4 {[%emt 0:00:59]} Bd7 {[%emt 0:08:16]} 16. Qb3 {[%emt 0:04:02]} b5 {[%emt 0:09:28]} 17. c5 {[%emt 0:10:40]} Be8 {[%emt 0:10:36]} 18. a4 {[%emt 0:00:59]} a6 {[%emt 0:00:26]} 19. Ra3 {[%emt 0:02:24]} Rh7 {[%emt 0:00:59]} 20. Rfa1 {[%emt 0:02:03]} Rha7 {[%emt 0:01:30]} 21. Qc2 {[%emt 0:01:19]} Qc7 {[%emt 0:01:07]} 22. Nb3 {[%emt 0:01:47]} Kg7 {[%emt 0:01:27]} 23. Nc1 {[%emt 0:01:52]} Kf8 {[%emt 0:00:37]} 24. Nd3 {[%emt 0:00:10]} Kg7 {[%emt 0:00:34]} 25. Bf1 {[%emt 0:00:14]} Ne4 {[%emt 0:00:35]} 26. Ne5 {[%emt 0:01:12]} Nf6 {[%emt 0:00:26]} 27. Qa2 {[%emt 0:01:13]} Qb7 {[%emt 0:00:31]} 28. Kh1 {[%emt 0:00:45]} Kf8 {[%emt 0:00:26]} 29. Bd3 {[%emt 0:00:38]} Qb8 {[%emt 0:00:33]} 30. f3 {[%emt 0:02:03]} gxf3 {[%emt 0:00:35]} 31. Nxf3 {[%emt 0:01:12]} Ng4 {[%emt 0:00:24]} 32. Ng5 {[%emt 0:01:20]} Qc8 {[%emt 0:00:28]} 33. Qe2 {[%emt 0:00:45]} Nf6 {[%emt 0:00:33]} 34. Qg2 {[%emt 0:01:09]} Rg7 {[%emt 0:00:33]} 35. Rg1 {[%emt 0:03:06]} Rg6 {[%emt 0:00:13]} 36. axb5 {[%emt 0:01:05]} cxb5 {[%emt 0:00:21]} 37. h3 {[%emt 0:02:11]} Ra7 {[%emt 0:00:57]} 38. Qa2 {[%emt 0:01:53]} Ne4 {[%emt 0:00:23]} 39. Bxe4 {[%emt 0:01:59]} fxe4 {[%emt 0:00:27]} 40. Kh2 {[%emt 0:04:21]} Bc6 {[%emt 0:00:42]} 41. Ra1 {[%emt 0:33:51]} Bb7 {[%emt 0:07:15]} 42. Qe2 {[%emt 0:00:00]} Rh6 {[%emt 0:03:17]} 43. Ra5 {[%emt 0:00:00]} Ra8 {[%emt 0:10:39]} 44. Rg1 {[%emt 0:00:00]} Rh8 {[%emt 0:10:13]} 45. Qf2 {[%emt 0:00:00]} Qd7 {[%emt 0:00:56]} 46. Qg3 {[%emt 0:00:00]} Rg8 {[%emt 0:00:38]} 47. f5 {[%emt 0:00:00]} exf5 {[%emt 0:00:23]} 48. Qe5 {[%emt 0:00:00]} Qe7 {[%emt 0:00:35]} 49. Qxf5+ {[%emt 0:00:00]} Ke8 {[%emt 0:00:04]} 50. Raa1 {[%emt 0:00:00]} Rf8 {[%emt 0:00:19]} 51. Qg6+ {[%emt 0:00:00]} Kd7 {[%emt 0:00:05]} 52. Raf1 {[%emt 0:00:00]} Rxf1 {[%emt 0:01:07]} 53. Rxf1 {[%emt 0:00:00]} Rf8 {[%emt 0:00:20]} 54. Nf7 {[%emt 0:00:00]} Kc8 {[%emt 0:00:36]} 55. Qg3 {[%emt 0:00:00]} Bc6 {[%emt 0:00:44]} 56. Qf4 {[%emt 0:03:49]} Rg8 {[%emt 0:00:42]} 57. Qh6 {[%emt 0:02:05]} Qc7+ {[%emt 0:00:34]} 58. Nd6+ {[%emt 0:00:18]} Kb8 {[%emt 0:00:28]} 59. Rf7 {[%emt 0:00:21]} Qd8 {[%emt 0:00:30]} 60. Nf5 {[%emt 0:05:15]} Be8 {[%emt 0:00:31]} 61. Rf6 {[%emt 0:04:00]} Qc7+ {[%emt 0:00:29]} 62. Kh1 {[%emt 0:00:15]} Bc6 {[%emt 0:00:31]} 63. Rxc6 {[%emt 0:00:29]} 1-0

[Event "Groningen Festival 2018"]
[Site "Groningen"]
[Date "2018.12.28"]
[Round "7"]
[White "Kislinsky, Alexey"]
[Black "Maatman, Nick"]
[Result "0-1"]
[ECO "C11"]
[WhiteElo "2425"]
[BlackElo "2363"]
[Annotator "NA"]
[PlyCount "82"]
[EventDate "2018.12.22"]
[EventType "swiss"]
[EventCountry "NED"]
[SourceTitle "playchess.com"]
[Source "ChessBase"]
[SourceQuality "1"]
[TimeControl "40/5400+30:1800+30"]

1. e4 {[%emt 0:00:00]} e6 {[%emt 0:05:07]} 2. Nf3 {[%emt 0:00:24]} d5 {[%emt 0:00:08]} 3. Nc3 {[%emt 0:00:10]} Nf6 {[%emt 0:00:04]} 4. e5 {[%emt 0:00:13]} Nfd7 {[%emt 0:00:03]} 5. d4 {[%emt 0:00:07]} c5 {[%emt 0:00:03]} 6. dxc5 {[%emt 0:00:07]} Nc6 {[%emt 0:00:06]} 7. Bf4 {[%emt 0:00:06]} Be7 {[%emt 0:01:08]} 8. h4 {[%emt 0:00:27]} a6 {[%emt 0:07:32]} 9. a3 {[%emt 0:00:33]} Qc7 {[%emt 0:12:33]} 10. g3 {[%emt 0:18:27]} Nxc5 {[%emt 0:03:43]} 11. Bg2 {[%emt 0:02:27]} b5 {[%emt 0:04:31]} 12. O-O {[%emt 0:00:25]} Bb7 {[%emt 0:02:26]} 13. b4 {[%emt 0:04:45]} Ne4 {[%emt 0:07:58]} 14. Nxe4 {[%emt 0:00:20]} dxe4 {[%emt 0:00:05]} 15. Nd2 {[%emt 0:00:20]} Rd8 {[%emt 0:18:31]} 16. Qg4 {[%emt 0:01:10]} O-O {[%emt 0:02:37]} 17. Nxe4 {[%emt 0:01:03]} Nxe5 {[%emt 0:02:34]} 18. Qh5 {[%emt 0:01:18]} Bxe4 {[%emt 0:00:37]} 19. Bxe4 {[%emt 0:03:53]} f5 {[%emt 0:00:11]} 20. Bg2 {[%emt 0:00:34]} Bd6 {[%emt 0:02:18]} 21. Qe2 {[%emt 0:01:12]} Rfe8 {[%emt 0:01:56]} 22. Rfe1 {[%emt 0:04:23]} Nc4 {[%emt 0:03:56]} 23. Bg5 {[%emt 0:02:05]} Rc8 {[%emt 0:00:03]} 24. c3 {[%emt 0:08:07]} h6 {[%emt 0:03:01]} 25. Bc1 {[%emt 0:03:01]} Kh8 {[%emt 0:03:42]} 26. Ra2 {[%emt 0:00:24]} Qf7 {[%emt 0:05:44]} 27. Rc2 {[%emt 0:10:23]} e5 {[%emt 0:01:03]} 28. g4 {[%emt 0:01:23]} e4 {[%emt 0:01:03]} 29. gxf5 {[%emt 0:00:39]} Qxf5 {[%emt 0:00:14]} 30. Bxe4 {[%emt 0:06:02]} Qh3 {[%emt 0:00:58]} 31. f3 {[%emt 0:02:58]} Qxh4 {[%emt 0:04:35]} 32. Rf1 {[%emt 0:11:41]} Bc7 {[%emt 0:00:44]} 33. Qg2 {[%emt 0:03:13]} Bb6+ {[%emt 0:00:05]} 34. Rcf2 {[%emt 0:00:38]} Rcd8 {[%emt 0:02:50]} 35. Qh2 {[%emt 0:01:19]} Rxe4 {[%emt 0:01:47]} 36. fxe4 {[%emt 0:00:39]} Qxe4 {[%emt 0:00:06]} 37. Bf4 {[%emt 0:07:21]} Rd5 {[%emt 0:00:51]} 38. Qg2 {[%emt 0:02:10]} Bxf2+ {[%emt 0:00:12]} 39. Qxf2 {[%emt 0:01:49]} Rd3 {[%emt 0:01:24]} 40. Kh2 {[%emt 0:01:50]} Rxc3 {[%emt 0:01:22]} 41. Qh4 {[%emt 0:03:53]} Ne5 {[%emt 0:06:30]} 0-1

[Event "Groningen Festival 2018"]
[Site "Groningen"]
[Date "2018.12.28"]
[Round "7"]
[White "Lahaye, Rick"]
[Black "Kabos, Tobias"]
[Result "1/2-1/2"]
[ECO "A16"]
[WhiteElo "2404"]
[BlackElo "2299"]
[Annotator "NA"]
[PlyCount "107"]
[EventDate "2018.12.22"]
[EventType "swiss"]
[EventCountry "NED"]
[SourceTitle "playchess.com"]
[Source "ChessBase"]
[SourceQuality "1"]
[TimeControl "40/5400+30:1800+30"]

1. c4 {[%emt 0:00:00]} Nf6 {[%emt 0:06:34]} 2. e3 {[%emt 0:01:16]} g6 {[%emt 0:04:51]} 3. Nc3 {[%emt 0:01:34]} Bg7 {[%emt 0:00:26]} 4. g4 {[%emt 0:04:16]} d6 {[%emt 0:03:27]} 5. g5 {[%emt 0:03:14]} Nfd7 {[%emt 0:00:10]} 6. Bg2 {[%emt 0:00:29]} Nc6 {[%emt 0:08:08]} 7. d3 {[%emt 0:05:22]} e6 {[%emt 0:09:36]} 8. h4 {[%emt 0:05:03]} a6 {[%emt 0:08:32]} 9. Nh3 {[%emt 0:07:16]} h6 {[%emt 0:08:36]} 10. Ne4 {[%emt 0:07:58]} hxg5 {[%emt 0:11:25]} 11. hxg5 {[%emt 0:07:03]} d5 {[%emt 0:03:10]} 12. Ng3 {[%emt 0:00:45]} dxc4 {[%emt 0:04:44]} 13. d4 {[%emt 0:01:59]} Nb6 {[%emt 0:01:35]} 14. f4 {[%emt 0:00:59]} Nd5 {[%emt 0:04:33]} 15. Nf2 {[%emt 0:00:35]} Rxh1+ {[%emt 0:01:01]} 16. Bxh1 {[%emt 0:00:08]} b6 {[%emt 0:04:35]} 17. Qe2 {[%emt 0:07:40]} Bb7 {[%emt 0:00:43]} 18. Qxc4 {[%emt 0:00:21]} Qd7 {[%emt 0:02:10]} 19. Bd2 {[%emt 0:01:24]} O-O-O {[%emt 0:00:33]} 20. O-O-O {[%emt 0:01:20]} Kb8 {[%emt 0:00:45]} 21. Nd3 {[%emt 0:02:36]} Ka7 {[%emt 0:01:11]} 22. Be4 {[%emt 0:06:53]} Rh8 {[%emt 0:04:33]} 23. Rh1 {[%emt 0:00:24]} Rxh1+ {[%emt 0:00:08]} 24. Bxh1 {[%emt 0:00:04]} Nde7 {[%emt 0:04:35]} 25. Qc2 {[%emt 0:03:59]} Nb8 {[%emt 0:02:20]} 26. Bxb7 {[%emt 0:01:31]} Kxb7 {[%emt 0:00:03]} 27. Ne4 {[%emt 0:01:13]} Qc6 {[%emt 0:02:02]} 28. Qxc6+ {[%emt 0:03:55]} Nbxc6 {[%emt 0:00:33]} 29. Bc3 {[%emt 0:00:24]} Nd5 {[%emt 0:00:57]} 30. Kd2 {[%emt 0:00:09]} Kc8 {[%emt 0:00:38]} 31. Nef2 {[%emt 0:00:21]} Kd7 {[%emt 0:00:34]} 32. e4 {[%emt 0:00:49]} Nxc3 {[%emt 0:00:48]} 33. bxc3 {[%emt 0:00:24]} Na5 {[%emt 0:00:40]} 34. Ng4 {[%emt 0:07:05]} Nc6 {[%emt 0:00:29]} 35. Ne1 {[%emt 0:02:57]} Na5 {[%emt 0:01:17]} 36. Kd3 {[%emt 0:00:31]} Nc6 {[%emt 0:00:09]} 37. Nf3 {[%emt 0:01:23]} Ke7 {[%emt 0:00:48]} 38. Ne3 {[%emt 0:00:44]} Kd7 {[%emt 0:00:23]} 39. a4 {[%emt 0:01:02]} Ke7 {[%emt 0:00:46]} 40. f5 {[%emt 0:11:12]} exf5 {[%emt 0:00:49]} 41. exf5 {[%emt 0:30:05]} gxf5 {[%emt 0:10:51]} 42. Nxf5+ {[%emt 0:00:00]} Kf8 {[%emt 0:00:06]} 43. Ke4 {[%emt 0:00:00]} Ne7 {[%emt 0:04:58]} 44. N3h4 {[%emt 0:00:00]} Bh8 {[%emt 0:01:09]} 45. c4 {[%emt 0:00:00]} Ke8 {[%emt 0:03:23]} 46. Nh6 {[%emt 0:00:00]} c6 {[%emt 0:03:25]} 47. d5 {[%emt 0:00:00]} cxd5+ {[%emt 0:03:21]} 48. cxd5 {[%emt 0:00:00]} Nc8 {[%emt 0:02:37]} 49. N4f5 {[%emt 0:00:00]} b5 {[%emt 0:00:39]} 50. axb5 {[%emt 0:00:00]} axb5 {[%emt 0:00:04]} 51. d6 {[%emt 0:00:00]} Nb6 {[%emt 0:00:20]} 52. Ne7 {[%emt 0:01:18]} Bc3 {[%emt 0:01:27]} 53. Nhg8 {[%emt 0:04:41]} Kd7 {[%emt 0:01:09]} 54. Nf5 {[%emt 0:01:23]} 1/2-1/2

[Event "Groningen Festival 2018"]
[Site "Groningen"]
[Date "2018.12.28"]
[Round "7"]
[White "Maris, Ivo"]
[Black "Warmerdam, Max"]
[Result "0-1"]
[ECO "D00"]
[WhiteElo "2351"]
[BlackElo "2433"]
[Annotator "NA"]
[PlyCount "82"]
[EventDate "2018.12.22"]
[EventType "swiss"]
[EventCountry "NED"]
[SourceTitle "playchess.com"]
[Source "ChessBase"]
[SourceQuality "1"]
[TimeControl "40/5400+30:1800+30"]

1. c3 {[%emt 0:04:09]} Nf6 {[%emt 0:01:03]} 2. d4 {[%emt 0:00:37]} d5 {[%emt 0:02:55]} 3. e3 {[%emt 0:04:52]} g6 {[%emt 0:06:13]} 4. Be2 {[%emt 0:04:29]} Bg7 {[%emt 0:00:09]} 5. f4 {[%emt 0:00:51]} Ne4 {[%emt 0:13:56]} 6. Nd2 {[%emt 0:02:12]} Nd6 {[%emt 0:01:14]} 7. Ngf3 {[%emt 0:06:15]} Nd7 {[%emt 0:01:28]} 8. Ne5 {[%emt 0:07:03]} Nf6 {[%emt 0:04:14]} 9. c4 {[%emt 0:01:50]} c6 {[%emt 0:22:09]} 10. cxd5 {[%emt 0:01:52]} cxd5 {[%emt 0:00:49]} 11. Qa4+ {[%emt 0:00:16]} Bd7 {[%emt 0:04:47]} 12. Nxd7 {[%emt 0:00:53]} Qxd7 {[%emt 0:00:33]} 13. Qxd7+ {[%emt 0:01:17]} Kxd7 {[%emt 0:00:07]} 14. Bd3 {[%emt 0:02:03]} Rhc8 {[%emt 0:10:13]} 15. Ke2 {[%emt 0:02:26]} e6 {[%emt 0:21:38]} 16. a4 {[%emt 0:03:49]} a5 {[%emt 0:01:45]} 17. Rb1 {[%emt 0:06:54]} Nfe4 {[%emt 0:00:43]} 18. Bxe4 {[%emt 0:11:02]} dxe4 {[%emt 0:00:20]} 19. b3 {[%emt 0:00:18]} b5 {[%emt 0:04:17]} 20. axb5 {[%emt 0:00:09]} Nxb5 {[%emt 0:00:01]} 21. Bb2 {[%emt 0:00:00]} Nd6 {[%emt 0:01:14]} 22. Rhc1 {[%emt 0:02:54]} Rxc1 {[%emt 0:00:32]} 23. Rxc1 {[%emt 0:00:12]} Bf8 {[%emt 0:00:16]} 24. Ra1 {[%emt 0:01:25]} Kc6 {[%emt 0:00:22]} 25. Rc1+ {[%emt 0:06:38]} Kd7 {[%emt 0:00:31]} 26. Ra1 {[%emt 0:05:06]} Kc6 {[%emt 0:00:01]} 27. Ra4 {[%emt 0:06:52]} Kb5 {[%emt 0:00:57]} 28. Ba3 {[%emt 0:08:21]} f5 {[%emt 0:00:05]} 29. Bxd6 {[%emt 0:00:48]} Bxd6 {[%emt 0:00:02]} 30. Nc4 {[%emt 0:00:06]} Bb4 {[%emt 0:00:52]} 31. Kf2 {[%emt 0:01:08]} Ra6 {[%emt 0:01:12]} 32. Ke2 {[%emt 0:02:05]} Rc6 {[%emt 0:00:29]} 33. Na3+ {[%emt 0:02:46]} Bxa3 {[%emt 0:00:06]} 34. Rxa3 {[%emt 0:00:01]} Rc2+ {[%emt 0:00:12]} 35. Kf1 {[%emt 0:00:01]} Rb2 {[%emt 0:00:32]} 36. h3 {[%emt 0:01:40]} h5 {[%emt 0:00:36]} 37. g4 {[%emt 0:01:28]} fxg4 {[%emt 0:00:18]} 38. hxg4 {[%emt 0:00:01]} hxg4 {[%emt 0:00:15]} 39. Ke1 {[%emt 0:02:41]} g3 {[%emt 0:00:20]} 40. Kf1 {[%emt 0:00:08]} Kb6 {[%emt 0:00:41]} 41. Kg1 {[%emt 0:31:58]} Re2 {[%emt 0:30:55]} 0-1

[Event "Groningen Festival 2018"]
[Site "Groningen"]
[Date "2018.12.28"]
[Round "7"]
[White "De Boer, Eelke"]
[Black "Schippers, Maurice"]
[Result "1-0"]
[ECO "B38"]
[WhiteElo "2327"]
[BlackElo "2270"]
[Annotator "NA"]
[PlyCount "185"]
[EventDate "2018.12.22"]
[EventType "swiss"]
[EventCountry "NED"]
[SourceTitle "playchess.com"]
[Source "ChessBase"]
[SourceQuality "1"]
[TimeControl "40/5400+30:1800+30"]

1. e4 {[%emt 0:00:00]} c5 {[%emt 0:00:00]} 2. Nf3 {[%emt 0:00:00]} Nc6 {[%emt 0:00:00]} 3. d4 {[%emt 0:00:00]} cxd4 {[%emt 0:00:00]} 4. Nxd4 {[%emt 0:00:00]} g6 {[%emt 0:00:00]} 5. c4 {[%emt 0:00:10]} Bg7 {[%emt 0:00:00]} 6. Be3 {[%emt 0:00:09]} Nf6 {[%emt 0:00:03]} 7. Nc3 {[%emt 0:00:06]} d6 {[%emt 0:00:17]} 8. Be2 {[%emt 0:09:07]} O-O {[%emt 0:00:10]} 9. O-O {[%emt 0:03:02]} Bd7 {[%emt 0:01:15]} 10. Qd2 {[%emt 0:00:24]} Nxd4 {[%emt 0:00:06]} 11. Bxd4 {[%emt 0:00:07]} Bc6 {[%emt 0:00:04]} 12. f3 {[%emt 0:00:08]} a5 {[%emt 0:00:14]} 13. b3 {[%emt 0:02:29]} Nd7 {[%emt 0:01:27]} 14. Be3 {[%emt 0:00:49]} Nc5 {[%emt 0:00:08]} 15. Rab1 {[%emt 0:00:07]} e6 {[%emt 0:00:32]} 16. Rfd1 {[%emt 0:02:23]} Be5 {[%emt 0:00:42]} 17. Bd4 {[%emt 0:00:15]} Qe7 {[%emt 0:01:35]} 18. Bf1 {[%emt 0:18:50]} Rad8 {[%emt 0:01:31]} 19. g3 {[%emt 0:01:15]} Bxd4+ {[%emt 0:05:45]} 20. Qxd4 {[%emt 0:02:58]} e5 {[%emt 0:03:08]} 21. Qe3 {[%emt 0:05:54]} f5 {[%emt 0:02:19]} 22. Bg2 {[%emt 0:05:22]} fxe4 {[%emt 0:03:29]} 23. fxe4 {[%emt 0:00:20]} Ne6 {[%emt 0:03:25]} 24. Rd2 {[%emt 0:03:52]} Kg7 {[%emt 0:06:46]} 25. Rbd1 {[%emt 0:03:30]} h5 {[%emt 0:07:34]} 26. a3 {[%emt 0:09:36]} h4 {[%emt 0:16:47]} 27. b4 {[%emt 0:01:07]} axb4 {[%emt 0:01:04]} 28. axb4 {[%emt 0:00:08]} hxg3 {[%emt 0:02:46]} 29. hxg3 {[%emt 0:00:24]} Nd4 {[%emt 0:01:05]} 30. Ne2 {[%emt 0:13:20]} Nxe2+ {[%emt 0:02:13]} 31. Qxe2 {[%emt 0:02:04]} Qg5 {[%emt 0:00:37]} 32. Rd3 {[%emt 0:01:30]} b5 {[%emt 0:03:11]} 33. Rxd6 {[%emt 0:09:58]} Rxd6 {[%emt 0:01:49]} 34. Rxd6 {[%emt 0:00:07]} Qc1+ {[%emt 0:00:34]} 35. Kh2 {[%emt 0:01:22]} Rh8+ {[%emt 0:06:08]} 36. Bh3 {[%emt 0:00:07]} Rxh3+ {[%emt 0:01:28]} 37. Kxh3 {[%emt 0:00:08]} Qh1+ {[%emt 0:00:15]} 38. Qh2 {[%emt 0:00:06]} Qxe4 {[%emt 0:00:17]} 39. cxb5 {[%emt 0:03:48]} Bxb5 {[%emt 0:05:38]} 40. Qg2 {[%emt 0:04:02]} Qxb4 {[%emt 0:09:35]} 41. Qd5 {[%emt 0:08:34]} Qb2 {[%emt 0:12:07]} 42. Qf3 {[%emt 0:03:12]} Qb1 {[%emt 0:11:24]} 43. Qf6+ {[%emt 0:12:17]} Kh7 {[%emt 0:00:23]} 44. Qxe5 {[%emt 0:02:21]} Qh1+ {[%emt 0:08:25]} 45. Kg4 {[%emt 0:00:05]} Be2+ {[%emt 0:01:37]} 46. Kf4 {[%emt 0:00:09]} Qc1+ {[%emt 0:05:06]} 47. Qe3 {[%emt 0:02:44]} Qc7 {[%emt 0:02:28]} 48. Qe6 {[%emt 0:01:36]} Qc1+ {[%emt 0:00:27]} 49. Qe3 {[%emt 0:01:29]} Qc7 {[%emt 0:00:43]} 50. Qd4 {[%emt 0:01:13]} Qc1+ {[%emt 0:02:09]} 51. Qd2 {[%emt 0:00:46]} Qf1+ {[%emt 0:01:54]} 52. Ke5 {[%emt 0:00:06]} Bb5 {[%emt 0:01:50]} 53. Qe3 {[%emt 0:01:25]} Qc4 {[%emt 0:01:58]} 54. Kf6 {[%emt 0:00:47]} Qf1+ {[%emt 0:00:32]} 55. Qf4 {[%emt 0:00:12]} Qa1+ {[%emt 0:00:27]} 56. Kg5 {[%emt 0:00:09]} Be8 {[%emt 0:00:57]} 57. Qh4+ {[%emt 0:00:44]} Kg8 {[%emt 0:00:12]} 58. Qc4+ {[%emt 0:00:09]} Kh7 {[%emt 0:00:32]} 59. Qc5 {[%emt 0:01:38]} Qe1 {[%emt 0:00:58]} 60. Qc7+ {[%emt 0:00:29]} Kg8 {[%emt 0:00:19]} 61. Qc4+ {[%emt 0:00:27]} Kh7 {[%emt 0:00:26]} 62. Qh4+ {[%emt 0:00:35]} Kg8 {[%emt 0:00:18]} 63. Qf4 {[%emt 0:00:46]} Qe7+ {[%emt 0:00:45]} 64. Kg4 {[%emt 0:00:24]} Qe2+ {[%emt 0:00:39]} 65. Kh3 {[%emt 0:00:23]} Qh5+ {[%emt 0:00:23]} 66. Kg2 {[%emt 0:00:19]} Qe2+ {[%emt 0:00:09]} 67. Qf2 {[%emt 0:00:14]} Qe4+ {[%emt 0:00:04]} 68. Kh2 {[%emt 0:00:11]} Qe5 {[%emt 0:01:01]} 69. Rd4 {[%emt 0:00:26]} Qc5 {[%emt 0:01:13]} 70. Qe3 {[%emt 0:01:05]} Qb5 {[%emt 0:00:48]} 71. Qd2 {[%emt 0:00:59]} Qh5+ {[%emt 0:00:35]} 72. Rh4 {[%emt 0:00:06]} Qe5 {[%emt 0:00:16]} 73. Qa2+ {[%emt 0:00:47]} Kg7 {[%emt 0:00:37]} 74. Qa7+ {[%emt 0:00:18]} Bf7 {[%emt 0:00:37]} 75. Qd4 {[%emt 0:00:30]} Qxd4 {[%emt 0:00:07]} 76. Rxd4 {[%emt 0:00:08]} Be6 {[%emt 0:00:41]} 77. Kg2 {[%emt 0:00:52]} Kf6 {[%emt 0:00:05]} 78. Kf3 {[%emt 0:00:26]} Bf5 {[%emt 0:01:06]} 79. Ra4 {[%emt 0:00:49]} Bc2 {[%emt 0:00:19]} 80. Ra6+ {[%emt 0:00:19]} Kg5 {[%emt 0:00:44]} 81. Ra5+ {[%emt 0:00:17]} Kf6 {[%emt 0:00:04]} 82. Kf4 {[%emt 0:00:12]} Bd3 {[%emt 0:00:26]} 83. Rc5 {[%emt 0:00:22]} Bb1 {[%emt 0:01:01]} 84. Rc6+ {[%emt 0:00:07]} Kf7 {[%emt 0:00:33]} 85. Kg5 {[%emt 0:00:10]} Be4 {[%emt 0:00:13]} 86. Rc7+ {[%emt 0:00:18]} Kf8 {[%emt 0:00:45]} 87. Kf6 {[%emt 0:00:16]} Bf5 {[%emt 0:00:08]} 88. Rg7 {[%emt 0:00:15]} Bc2 {[%emt 0:00:20]} 89. g4 {[%emt 0:01:01]} Be4 {[%emt 0:00:28]} 90. Rxg6 {[%emt 0:00:26]} Bxg6 {[%emt 0:00:05]} 91. Kxg6 {[%emt 0:00:08]} Kg8 {[%emt 0:00:01]} 92. g5 {[%emt 0:00:14]} Kh8 {[%emt 0:00:09]} 93. Kf7 {[%emt 0:00:07]} 1-0